bitfinex/quotes_BTCUSD_20240730
["timestamp","ask_amount","ask_price","bid_price","bid_amount"]
[1722318054853,0.01138,66568.0,66567.0,1.11358634]
[1722318055058,0.01238,66568.0,66567.0,1.12058634]
[1722318055280,0.01238,66568.0,66567.0,1.11358634]
[1722318055281,0.00838,66568.0,66567.0,1.11358634]
[1722318055419,0.03194692,66568.0,66567.0,1.12658634]
[1722318055619,0.03394692,66568.0,66567.0,1.58257838]
[1722318055864,0.03394692,66568.0,66567.0,1.66057838]
[1722318056098,0.03394692,66568.0,66567.0,1.68057838]
[1722318056099,0.01038,66568.0,66567.0,1.68057838]
[1722318056266,0.01038,66568.0,66567.0,1.66057838]
[1722318056469,0.01038,66568.0,66567.0,1.68257838]
[1722318057866,0.01038,66568.0,66567.0,1.68256132]
[1722318059289,0.03394553,66568.0,66567.0,1.68256132]
[1722318059726,0.01038,66568.0,66567.0,1.68256132]
[1722318060194,0.01038,66568.0,66567.0,1.65056132]
[1722318060383,0.01038,66568.0,66567.0,1.23656928]
[1722318060782,0.01038,66568.0,66567.0,1.011756]
[1722318061392,0.01038,66568.0,66567.0,0.383538]
[1722318061644,0.01038,66568.0,66567.0,0.023]
[1722318061988,0.0119342,66568.0,66567.0,0.023]
[1722318062392,0.0109342,66568.0,66567.0,0.013]
[1722318062646,0.0109342,66568.0,66560.0,0.24921605]
[1722318062647,0.0099342,66568.0,66564.0,0.240368]
[1722318062849,0.00938,66568.0,66567.0,0.01]
[1722318063062,0.46516968,66568.0,66567.0,0.011]
[1722318063194,0.46390606,66568.0,66567.0,0.011]
[1722318063397,0.48721718,66568.0,66567.0,0.01]
[1722318063627,0.90982575,66568.0,66567.0,0.01]
[1722318063850,0.58022625,66568.0,66567.0,0.01]
[1722318064253,0.66985617,66568.0,66567.0,0.01]
[1722318064505,0.6368507,66568.0,66567.0,0.01]
[1722318064698,0.120183,66565.0,66558.0,0.000913]
[1722318064900,0.15202612,66564.0,66558.0,0.000913]
[1722318065275,0.15202612,66564.0,66558.0,0.121108]
[1722318065593,0.0015542,66563.0,66559.0,0.120193]
[1722318065738,0.0015542,66563.0,66558.0,0.000913]
[1722318065739,0.15063304,66563.0,66558.0,0.000913]
[1722318065939,0.0015542,66562.0,66558.0,0.000913]
[1722318066391,0.0015542,66562.0,66558.0,0.001913]
[1722318066741,0.0015542,66562.0,66558.0,0.000913]
[1722318066742,0.02512438,66562.0,66558.0,0.000913]
[1722318066965,0.0015542,66562.0,66558.0,0.000913]
[1722318067495,0.04463131,66565.0,66559.0,0.120193]
[1722318067694,0.00114673,66564.0,66559.0,0.120193]
[1722318067902,0.04463131,66565.0,66559.0,0.120193]
[1722318068098,0.003,66563.0,66559.0,0.120193]
[1722318068299,0.003,66562.0,66558.0,0.000913]
[1722318068499,0.02691016,66562.0,66558.0,0.000913]
[1722318068755,0.003,66562.0,66558.0,0.121107]
[1722318069066,0.0013413,66564.0,66560.0,0.120191]
[1722318069383,0.002,66565.0,66560.0,0.120191]
[1722318069607,0.00149269,66564.0,66560.0,0.120191]
[1722318069777,0.00149269,66564.0,66559.0,0.120193]
[1722318069778,0.04463586,66564.0,66559.0,0.120193]
[1722318069985,0.15063304,66566.0,66559.0,0.120193]
[1722318070140,0.04463607,66565.0,66559.0,0.120193]
[1722318070338,0.0015542,66562.0,66559.0,0.120193]
[1722318070547,0.0015542,66562.0,66558.0,0.004913]
[1722318070548,0.04463607,66565.0,66558.0,0.125108]
[1722318070765,0.0015542,66564.0,66558.0,0.125108]
[1722318071193,0.0015542,66564.0,66559.0,0.240388]
[1722318071341,0.0015542,66564.0,66562.0,0.120187]
[1722318071544,0.0015542,66564.0,66563.0,0.600932]
[1722318071755,0.05301607,66568.0,66567.0,0.120179]
[1722318071756,0.00838,66568.0,66567.0,0.120179]
[1722318071987,0.00838,66568.0,66567.0,0.360538]
[1722318072611,0.00838,66568.0,66567.0,0.600897]
[1722318072828,0.00838,66568.0,66567.0,0.360538]
[1722318072990,0.00838,66568.0,66567.0,0.600897]
[1722318073432,0.00838,66568.0,66567.0,0.6888967]
[1722318073795,0.03194722,66568.0,66567.0,0.6888967]
[1722318073994,0.03194722,66568.0,66567.0,0.601897]
[1722318074201,0.03194722,66568.0,66567.0,0.908456]
[1722318074418,0.03294722,66568.0,66567.0,0.984056]
[1722318074625,0.00938,66568.0,66567.0,1.007056]
[1722318075079,0.00838,66568.0,66567.0,1.007056]
[1722318075301,0.00938,66568.0,66567.0,1.017056]
[1722318075484,0.01038,66568.0,66567.0,1.029056]
[1722318075867,0.00938,66568.0,66567.0,1.017056]
[1722318076234,0.00938,66568.0,66567.0,1.020056]
[1722318076436,0.00938,66568.0,66567.0,1.1425916]
[1722318076687,0.00938,66568.0,66567.0,1.020056]
[1722318077666,0.00938,66568.0,66567.0,1.032056]
[1722318077667,0.01038,66568.0,66567.0,1.032056]
[1722318077872,0.03394636,66568.0,66567.0,1.032056]
[1722318079164,0.01038,66568.0,66567.0,1.032056]
[1722318079331,0.01038,66568.0,66567.0,0.791697]
[1722318080346,0.01038,66568.0,66567.0,1.032056]
[1722318080551,0.01038,66568.0,66567.0,1.15550896]
[1722318081365,0.01038,66568.0,66567.0,0.91514996]
[1722318082296,0.03394636,66568.0,66567.0,0.791697]
[1722318082520,0.01038,66568.0,66567.0,0.791697]
[1722318082948,0.01038,66568.0,66567.0,1.032056]
[1722318083368,0.01038,66568.0,66567.0,0.791697]
[1722318084413,0.01038,66568.0,66567.0,1.032056]
[1722318085447,0.03394627,66568.0,66567.0,0.791697]
[1722318086064,0.03394627,66568.0,66567.0,1.032056]
[1722318086373,0.03394627,66568.0,66567.0,1.15670896]
[1722318086931,0.03394627,66568.0,66567.0,1.032056]
[1722318091152,0.01038,66568.0,66567.0,0.791697]
[1722318092088,0.01038,66568.0,66567.0,1.032056]
[1722318094533,0.01038,66568.0,66567.0,1.00848969]
[1722318096791,0.01038,66568.0,66567.0,1.41595284]
[1722318097261,0.01038,66568.0,66567.0,1.87972184]
[1722318097580,0.00838,66568.0,66567.0,1.85372184]
[1722318098031,0.01038,66568.0,66567.0,1.87672184]
[1722318098234,0.00938,66568.0,66567.0,1.86572184]
[1722318098412,0.00938,66568.0,66567.0,2.02422184]
[1722318098611,0.00847,66578.0,66577.0,1.03994]
[1722318098978,0.00847,66578.0,66577.0,1.87202615]
[1722318099353,0.00847,66578.0,66577.0,1.87199348]
[1722318100087,0.00847,66578.0,66577.0,1.84999348]
[1722318100212,0.03203325,66578.0,66577.0,1.86999348]
[1722318100411,0.03203325,66578.0,66577.0,1.86399348]
[1722318100911,0.03203325,66578.0,66577.0,1.88399348]
[1722318101249,0.03203325,66578.0,66577.0,1.89799348]
[1722318101435,0.03203325,66578.0,66577.0,1.89999348]
[1722318102078,0.00847,66587.0,66586.0,0.130145]
[1722318102267,0.00847,66590.0,66589.0,0.392418]
[1722318102534,0.00847,66598.0,66592.0,0.252269]
[1722318102731,0.00847,66598.0,66592.0,1.4965575]
[1722318102847,0.00847,66598.0,66592.0,1.6195575]
[1722318103044,0.00847,66598.0,66592.0,1.8598265]
[1722318103249,0.00847,66598.0,66592.0,1.8798265]
[1722318103664,0.00847,66598.0,66593.0,1.143302]
[1722318103957,0.00847,66598.0,66593.0,1.5417085]
[1722318104799,0.00847,66598.0,66593.0,1.55369477]
[1722318105137,0.00847,66598.0,66593.0,1.56769477]
[1722318105515,0.00847,66598.0,66593.0,1.44293504]
[1722318105703,0.00847,66598.0,66593.0,1.56770113]
[1722318106070,0.00847,66598.0,66593.0,1.70720113]
[1722318106271,0.00847,66598.0,66593.0,1.70920113]
[1722318106651,0.00847,66598.0,66593.0,1.86770113]
[1722318107267,0.00847,66598.0,66593.0,1.84570113]
[1722318107747,0.45290115,66615.0,66609.0,0.120103]
[1722318107963,0.00846,66610.0,66609.0,0.90266034]
[1722318108188,0.00846,66610.0,66609.0,1.45916734]
[1722318108932,0.00846,66610.0,66609.0,1.46716734]
[1722318109840,0.00846,66610.0,66609.0,1.47616734]
[1722318110049,0.00846,66610.0,66609.0,1.46716734]
[1722318110251,0.03200906,66610.0,66609.0,1.45916734]
[1722318110451,0.03200906,66610.0,66609.0,1.47316734]
[1722318110670,0.03200906,66610.0,66609.0,1.48716734]
[1722318110873,0.03200906,66610.0,66609.0,1.47316734]
[1722318111319,0.00846,66610.0,66609.0,1.47316734]
[1722318111522,0.00846,66610.0,66609.0,1.49716734]
[1722318111651,0.00846,66610.0,66609.0,1.48716734]
[1722318113109,0.00846,66610.0,66609.0,1.49916734]
[1722318113310,0.00846,66610.0,66609.0,1.48716734]
[1722318113518,0.00846,66610.0,66609.0,1.75737434]
[1722318114091,0.00846,66610.0,66609.0,1.78948434]
[1722318114292,0.03200897,66610.0,66609.0,1.93492642]
[1722318114743,0.03200897,66610.0,66609.0,1.95492642]
[1722318114887,0.03200897,66610.0,66609.0,1.95692642]
[1722318115589,0.03200897,66610.0,66609.0,1.73631642]
[1722318116076,0.00846,66610.0,66609.0,1.74631642]
[1722318116514,0.00846,66610.0,66609.0,1.49880942]
[1722318118894,0.03200901,66610.0,66609.0,1.49880942]
[1722318123475,0.03200901,66610.0,66609.0,1.50880942]
[1722318123691,0.03200901,66610.0,66609.0,1.53080942]
[1722318123909,0.00846,66610.0,66609.0,1.53080942]
[1722318124585,0.00846,66610.0,66609.0,1.77101642]
[1722318124846,0.00846,66610.0,66609.0,1.49880942]
[1722318125460,0.00846,66610.0,66609.0,1.62355004]
[1722318125987,0.00846,66610.0,66609.0,1.63355004]
[1722318126190,0.00846,66610.0,66609.0,1.63354965]
[1722318126419,0.00346,66610.0,66609.0,1.63354965]
[1722318126791,0.00346,66610.0,66609.0,1.81204965]
[1722318127009,0.02700836,66610.0,66609.0,1.81204965]
[1722318127222,0.02700836,66610.0,66609.0,2.05225504]
[1722318127391,0.02700836,66610.0,66609.0,2.08236504]
[1722318127823,0.02700836,66610.0,66609.0,2.08436504]
[1722318129077,0.02700836,66610.0,66609.0,2.07036504]
[1722318129441,0.02700836,66610.0,66609.0,2.05636504]
[1722318129839,0.02700836,66610.0,66609.0,2.22483696]
[1722318130041,0.0141541,66610.0,66609.0,2.22483696]
[1722318130449,0.00846,66615.0,66614.0,0.880771]
[1722318130609,0.00846,66615.0,66614.0,1.279128]
[1722318130810,0.00846,66626.0,66621.0,0.0818]
[1722318131009,0.0015542,66625.0,66624.0,0.313376]
[1722318131212,0.00846,66626.0,66625.0,0.600375]
[1722318131496,0.00846,66626.0,66625.0,0.74809678]
[1722318131630,0.00846,66626.0,66625.0,0.84809678]
[1722318132515,0.00846,66626.0,66625.0,1.08824678]
[1722318132716,0.00846,66626.0,66625.0,1.10224678]
[1722318133603,0.00846,66626.0,66625.0,0.977525]
[1722318133809,0.03200552,66626.0,66625.0,1.26687908]
[1722318134012,0.03200552,66626.0,66625.0,1.32837908]
[1722318134158,0.00846,66626.0,66625.0,1.32837908]
[1722318134361,0.00846,66626.0,66625.0,1.40387908]
[1722318134956,0.00846,66626.0,66625.0,1.41387908]
[1722318135181,0.00846,66626.0,66625.0,1.40387908]
[1722318135383,0.00846,66626.0,66625.0,1.41279966]
[1722318136831,0.00846,66626.0,66625.0,1.41279237]
[1722318137066,0.00846,66626.0,66625.0,1.45290237]
[1722318137067,0.032005,66626.0,66625.0,1.45290237]
[1722318137310,0.032005,66626.0,66625.0,1.44290237]
[1722318137540,0.032005,66626.0,66625.0,1.42890237]
[1722318137978,0.032005,66626.0,66625.0,1.44290237]
[1722318138231,0.00846,66626.0,66625.0,1.42890237]
[1722318138482,0.00842,66626.0,66625.0,1.67905237]
[1722318138719,0.00842,66626.0,66625.0,1.71505237]
[1722318139169,0.00842,66626.0,66625.0,1.70105237]
[1722318139368,0.00842,66626.0,66625.0,1.72480306]
[1722318139494,0.00842,66626.0,66625.0,1.68705237]
[1722318139696,0.00842,66626.0,66625.0,1.70105237]
[1722318140094,0.00842,66626.0,66625.0,1.57633862]
[1722318140294,0.00837,66626.0,66625.0,1.70104274]
[1722318140535,0.00846,66635.0,66630.0,1.144494]
[1722318140737,0.00846,66635.0,66630.0,1.873641]
[1722318140940,0.00846,66635.0,66630.0,1.94918957]
[1722318141139,0.00846,66635.0,66630.0,1.92918957]
[1722318141351,0.00846,66635.0,66630.0,1.853641]
[1722318141551,0.0320024,66631.0,66630.0,1.853641]
[1722318141969,0.0320024,66631.0,66630.0,1.867641]
[1722318142534,0.0320024,66631.0,66630.0,1.853641]
[1722318142915,0.0320024,66631.0,66630.0,1.867641]
[1722318143113,0.0320024,66631.0,66630.0,1.887641]
[1722318143328,0.0320024,66631.0,66630.0,1.903641]
[1722318143529,0.0320024,66631.0,66630.0,1.881641]
[1722318143689,0.0320024,66631.0,66630.0,1.94193888]
[1722318143890,0.0320024,66631.0,66630.0,1.903641]
[1722318144091,0.0320024,66631.0,66630.0,1.94393888]
[1722318144301,0.0320024,66631.0,66630.0,1.903641]
[1722318144483,0.00846,66635.0,66634.0,1.090526]
[1722318144836,0.00846,66635.0,66634.0,1.55116088]
[1722318145275,0.00846,66635.0,66634.0,1.85176088]
[1722318145500,0.00846,66635.0,66634.0,1.91962157]
[1722318145670,0.00846,66635.0,66634.0,1.93362157]
[1722318146054,0.00846,66635.0,66634.0,1.94562157]
[1722318146216,0.00846,66635.0,66634.0,1.80691761]
[1722318146414,0.4657,66652.0,66639.0,0.01]
[1722318146682,0.00846,66654.0,66648.0,0.1933]
[1722318146881,0.00846,66654.0,66653.0,0.120024]
[1722318147080,0.00846,66654.0,66653.0,0.3914054]
[1722318147281,0.00846,66654.0,66653.0,0.1513564]
[1722318147429,0.00846,66654.0,66648.0,0.1933]
[1722318147430,0.0821,66653.0,66652.0,0.120026]
[1722318147665,0.0821,66653.0,66652.0,0.360078]
[1722318147874,0.0821,66653.0,66652.0,0.120026]
[1722318148115,0.0821,66653.0,66650.0,0.240059]
[1722318148116,0.0605,66652.0,66640.0,0.023]
[1722318148343,0.00846,66654.0,66640.0,0.023]
[1722318148344,0.0605,66646.0,66641.0,0.024641]
[1722318148781,0.0605,66646.0,66644.0,0.12004]
[1722318149001,0.0605,66646.0,66641.0,0.024641]
[1722318149252,0.0605,66646.0,66643.0,0.120042]
[1722318149450,0.0605,66646.0,66645.0,0.120039]
[1722318150296,0.08404012,66646.0,66645.0,0.120039]
[1722318150528,0.0605,66646.0,66645.0,0.120039]
[1722318150748,0.0605,66646.0,66645.0,0.360117]
[1722318151394,0.0605,66646.0,66644.0,0.120039]
[1722318151588,0.0605,66646.0,66645.0,0.120039]
[1722318151740,0.0605,66646.0,66645.0,0.148039]
[1722318152081,0.0605,66646.0,66645.0,0.388117]
[1722318152404,0.0605,66646.0,66645.0,0.134039]
[1722318153761,0.08403983,66646.0,66645.0,0.134039]
[1722318154178,0.0605,66646.0,66645.0,0.134039]
[1722318154409,0.0605,66646.0,66645.0,0.148039]
[1722318155461,0.0605,66646.0,66645.0,0.028]
[1722318156011,0.0620542,66646.0,66645.0,0.028]
[1722318157116,0.0620542,66646.0,66645.0,0.014]
[1722318157320,0.0620542,66646.0,66640.0,0.12913981]
[1722318157446,0.0620542,66646.0,66645.0,0.360117]
[1722318157447,0.0025542,66646.0,66645.0,0.360117]
[1722318157648,0.001,66646.0,66645.0,0.360117]
[1722318157851,0.001,66646.0,66645.0,0.553417]
[1722318158405,0.05317352,66654.0,66647.0,0.120034]
[1722318158607,0.1009391,66653.0,66647.0,0.120034]
[1722318158925,0.05622558,66652.0,66648.0,0.120033]
[1722318159046,0.05317352,66654.0,66648.0,0.120033]
[1722318159244,0.05675934,66653.0,66650.0,0.120029]
[1722318159492,0.00846,66654.0,66647.0,0.240069]
[1722318159698,0.00846,66654.0,66648.0,0.0673449]
[1722318159699,0.05720523,66653.0,66648.0,0.0673449]
[1722318160114,0.05720523,66653.0,66650.0,0.120029]
[1722318160387,0.05720523,66653.0,66648.0,0.0673449]
[1722318160388,0.05720523,66653.0,66648.0,0.1873769]
[1722318160592,0.05720523,66653.0,66650.0,0.002]
[1722318160910,0.0008249,66652.0,66650.0,0.002]
[1722318161113,0.0531724,66654.0,66650.0,0.002]
[1722318161333,0.05589924,66653.0,66650.0,0.123029]
[1722318161832,0.05589924,66653.0,66650.0,0.002]
[1722318162035,0.05589924,66653.0,66644.0,0.12004]
[1722318162036,0.04472021,66651.0,66644.0,0.12004]
[1722318162264,0.05745344,66650.0,66645.0,0.120037]
[1722318162466,0.05589924,66649.0,66648.0,0.002]
[1722318163005,0.99316369,66649.0,66648.0,0.002]
[1722318163207,1.31475089,66649.0,66648.0,0.002]
[1722318163407,0.1402,66634.0,66626.0,0.120072]
[1722318163582,0.04470699,66632.0,66626.0,0.120072]
[1722318163749,0.05745344,66633.0,66625.0,0.120074]
[1722318163750,0.10060623,66631.0,66625.0,0.120074]
[1722318163927,0.05745344,66630.0,66626.0,0.120071]
[1722318164130,0.05745344,66630.0,66625.0,0.120074]
[1722318164131,0.05589924,66629.0,66625.0,0.120074]
[1722318164366,0.0015542,66628.0,66617.0,0.383777]
[1722318164563,0.0015542,66628.0,66618.0,0.0817263]
[1722318164564,0.0605,66626.0,66618.0,0.0817263]
[1722318164910,0.09353317,66625.0,66623.0,0.120077]
[1722318165281,0.09353317,66625.0,66619.0,0.240169]
[1722318165282,0.12558782,66624.0,66619.0,0.240171]
[1722318165479,0.0766542,66624.0,66617.0,0.00891983]
[1722318165685,0.0766542,66624.0,66620.0,0.120083]
[1722318165809,0.0766542,66624.0,66622.0,0.12008]
[1722318166223,0.0766542,66624.0,66623.0,0.130078]
[1722318166423,0.0015542,66625.0,66624.0,0.120076]
[1722318167052,0.0015542,66628.0,66625.0,0.120074]
[1722318167253,0.02354662,66625.0,66624.0,0.120076]
[1722318167633,0.0015542,66628.0,66624.0,0.120076]
[1722318167858,0.0015542,66628.0,66623.0,0.021]
[1722318167859,0.0015542,66628.0,66623.0,0.141078]
[1722318168059,0.0015542,66628.0,66623.0,0.131078]
[1722318168460,0.0015542,66628.0,66625.0,0.005]
[1722318169239,0.04626008,66628.0,66625.0,0.005]
[1722318169450,0.202668,66629.0,66625.0,0.005]
[1722318169451,0.0015542,66626.0,66625.0,0.005]
[1722318169856,0.0015542,66626.0,66625.0,0.007]
[1722318170029,0.04470476,66626.0,66625.0,0.007]
[1722318170190,0.04625896,66627.0,66625.0,0.007]
[1722318170615,0.04625896,66627.0,66622.0,0.12008]
[1722318170817,0.02510106,66627.0,66622.0,0.12008]
[1722318171023,0.06980582,66627.0,66625.0,0.008]
[1722318171241,0.0015542,66627.0,66625.0,0.008]
[1722318171420,0.0015542,66627.0,66622.0,0.12008]
[1722318171421,0.04625896,66627.0,66622.0,0.12008]
[1722318171619,0.0015542,66627.0,66621.0,0.240162]
[1722318171842,0.0015542,66627.0,66625.0,0.120075]
[1722318172025,0.13085883,66630.0,66625.0,0.129075]
[1722318172026,0.0015542,66629.0,66625.0,0.129075]
[1722318172212,0.0015542,66629.0,66625.0,0.009]
[1722318172411,0.0015542,66629.0,66624.0,0.120075]
[1722318172633,0.0015542,66629.0,66622.0,0.1392]
[1722318172872,0.0015542,66629.0,66628.0,0.360208]
[1722318173066,0.04470637,66632.0,66628.0,0.120069]
[1722318173067,0.0015542,66632.0,66628.0,0.120069]
[1722318173312,0.0015542,66632.0,66629.0,0.120067]
[1722318173643,0.0015542,66634.0,66629.0,0.120067]
[1722318173844,0.04626057,66634.0,66629.0,0.120067]
[1722318174592,0.04626057,66634.0,66630.0,0.120065]
[1722318174593,0.02354567,66633.0,66630.0,0.120065]
[1722318174806,0.02354567,66633.0,66628.0,0.001]
[1722318174807,0.0015542,66632.0,66629.0,0.240135]
[1722318175132,0.0015542,66632.0,66631.0,0.120064]
[1722318175716,0.001,66634.0,66631.0,0.120064]
[1722318175889,0.0015542,66633.0,66631.0,0.120064]
[1722318176090,0.0015542,66633.0,66632.0,0.120062]
[1722318176430,0.0015542,66633.0,66632.0,0.360186]
[1722318176765,0.04471438,66639.0,66632.0,0.360186]
[1722318176766,0.0015542,66638.0,66632.0,0.28469972]
[1722318176893,0.0015542,66638.0,66630.0,0.240131]
[1722318177099,0.0015542,66638.0,66635.0,0.120056]
[1722318177480,0.11001438,66639.0,66635.0,0.120056]
[1722318177902,0.00117504,66637.0,66635.0,0.120056]
[1722318178110,0.0015542,66638.0,66635.0,0.120056]
[1722318178565,0.0015542,66638.0,66637.0,0.120053]
[1722318178750,0.0769,66641.0,66629.0,0.240135]
[1722318178751,0.04471592,66641.0,66635.0,0.1396]
[1722318178952,0.02354312,66638.0,66637.0,0.240106]
[1722318179193,0.02354312,66638.0,66637.0,0.360159]
[1722318179620,0.02354312,66638.0,66637.0,0.600265]
[1722318179979,0.04471822,66647.0,66644.0,0.120039]
[1722318180173,0.0604,66648.0,66644.0,0.120039]
[1722318180426,0.04471822,66649.0,66644.0,0.120039]
[1722318180635,0.0015542,66648.0,66644.0,0.120039]
[1722318180776,0.0015542,66648.0,66640.0,0.480192]
[1722318180777,0.04471822,66648.0,66640.0,0.240096]
[1722318181128,0.04472073,66648.0,66645.0,0.120039]
[1722318181271,0.0670811,66650.0,66644.0,0.12004]
[1722318181272,0.04472073,66649.0,66644.0,0.12004]
[1722318181474,0.04472073,66648.0,66644.0,0.12004]
[1722318181684,0.0015542,66647.0,66644.0,0.12004]
[1722318181984,0.04472073,66648.0,66644.0,0.12004]
[1722318182150,0.0015542,66647.0,66644.0,0.12004]
[1722318182360,0.04472073,66648.0,66644.0,0.12004]
[1722318182508,0.04472073,66647.0,66644.0,0.12004]
[1722318182694,0.04472073,66648.0,66644.0,0.12004]
[1722318182898,0.04472073,66647.0,66644.0,0.12004]
[1722318183155,0.04472073,66648.0,66644.0,0.12004]
[1722318183379,0.06826187,66648.0,66644.0,0.12004]
[1722318183586,0.04472073,66648.0,66644.0,0.12004]
[1722318183913,0.00137509,66646.0,66637.0,0.240106]
[1722318184117,0.12151412,66643.0,66631.0,0.1388]
[1722318184266,0.0015542,66642.0,66635.0,0.00882696]
[1722318184464,0.0015542,66642.0,66633.0,0.240121]
[1722318184465,0.04626832,66642.0,66638.0,0.12005]
[1722318184646,0.04471412,66642.0,66639.0,0.120049]
[1722318184843,0.04471412,66642.0,66636.0,0.240109]
[1722318184844,0.04471412,66642.0,66638.0,0.120051]
[1722318185168,0.00133735,66641.0,66639.0,0.120049]
[1722318185955,0.00133735,66642.0,66639.0,0.120049]
[1722318186161,0.00133735,66642.0,66640.0,0.120046]
[1722318186371,0.00133735,66642.0,66641.0,0.120046]
[1722318186574,0.15562417,66648.0,66641.0,0.120046]
[1722318186575,0.00133735,66645.0,66644.0,0.360121]
[1722318186774,0.04471208,66652.0,66651.0,0.360084]
[1722318186999,0.06706813,66653.0,66651.0,0.360084]
[1722318187000,0.04471208,66653.0,66652.0,0.120026]
[1722318187202,0.04471208,66653.0,66651.0,0.240056]
[1722318187203,0.05317914,66654.0,66653.0,0.120024]
[1722318187402,0.05317914,66654.0,66653.0,0.360073]
[1722318187602,0.05317914,66654.0,66653.0,0.120024]
[1722318187603,0.0531791,66654.0,66653.0,0.120024]
[1722318188569,0.00846,66654.0,66653.0,0.120024]
[1722318189126,0.00846,66654.0,66646.0,0.1933]
[1722318189273,0.120026,66653.0,66646.0,0.120036]
[1722318189467,0.0015542,66652.0,66646.0,0.120036]
[1722318189769,0.0015542,66652.0,66644.0,0.240078]
[1722318189770,0.0015542,66653.0,66644.0,0.240078]
[1722318190012,0.0015542,66653.0,66648.0,0.120033]
[1722318190238,0.0015542,66653.0,66647.0,0.24007]
[1722318190424,0.02353912,66651.0,66649.0,0.120031]
[1722318190809,0.0015542,66653.0,66646.0,0.005]
[1722318190976,0.0015542,66653.0,66646.0,0.120036]
[1722318191178,0.120024,66653.0,66646.0,0.120036]
[1722318191380,0.1449,66650.0,66647.0,0.005]
[1722318191871,0.0015542,66649.0,66647.0,0.005]
[1722318192042,0.0015542,66649.0,66647.0,0.125034]
[1722318192259,0.0015542,66649.0,66648.0,0.120033]
[1722318192450,0.0015542,66650.0,66649.0,0.120031]
[1722318193011,0.0015542,66650.0,66649.0,0.009]
[1722318193242,0.0015542,66650.0,66645.0,0.240076]
[1722318193243,0.0015542,66653.0,66646.0,0.005]
[1722318193439,0.02353872,66650.0,66647.0,0.24007]
[1722318193636,0.02353872,66650.0,66649.0,0.01]
[1722318193929,0.02353872,66650.0,66649.0,0.217731]
[1722318194338,0.02353872,66650.0,66649.0,0.946757]
[1722318195172,0.00846,66654.0,66653.0,0.360073]
[1722318197069,0.00846,66654.0,66653.0,0.992271]
[1722318197247,0.00846,66654.0,66653.0,0.998271]
[1722318197445,0.00846,66654.0,66653.0,0.992271]
[1722318197807,0.00846,66654.0,66653.0,1.002271]
[1722318198059,0.00846,66654.0,66653.0,1.025271]
[1722318198260,0.03199669,66654.0,66653.0,1.025271]
[1722318198929,0.03199669,66654.0,66653.0,1.016271]
[1722318199130,0.03199669,66654.0,66653.0,1.006271]
[1722318199512,0.03199669,66654.0,66653.0,1.015271]
[1722318199692,0.03199669,66654.0,66653.0,1.016271]
[1722318199906,0.03199669,66654.0,66653.0,1.006271]
[1722318200081,0.00846,66654.0,66653.0,1.020271]
[1722318200280,0.00846,66654.0,66653.0,1.18490404]
[1722318200713,0.00846,66654.0,66653.0,1.28490404]
[1722318201291,0.00846,66654.0,66653.0,1.52495304]
[1722318201645,0.00846,66661.0,66660.0,0.993384]
[1722318201842,0.00846,66661.0,66660.0,1.85510048]
[1722318202052,0.00846,66661.0,66660.0,1.60507648]
[1722318202242,0.00846,66661.0,66660.0,1.48042704]
[1722318203067,0.00846,66661.0,66660.0,1.313684]
[1722318203326,0.03199187,66661.0,66660.0,1.313684]
[1722318203569,0.00846,66661.0,66660.0,1.313684]
[1722318204035,0.00846,66661.0,66660.0,1.327684]
[1722318204263,0.00846,66661.0,66660.0,1.313684]
[1722318205964,0.00846,66661.0,66660.0,1.327684]
[1722318206457,0.00846,66661.0,66660.0,1.313684]
[1722318206710,0.00846,66661.0,66660.0,1.327684]
[1722318206939,0.0319926,66661.0,66660.0,1.08766]
[1722318207187,0.0319926,66661.0,66660.0,1.07366]
[1722318207773,0.00846,66661.0,66660.0,1.08766]
[1722318207990,0.00846,66661.0,66660.0,1.02426]
[1722318208423,0.00846,66661.0,66660.0,1.0334159]
[1722318209108,0.00846,66661.0,66660.0,1.2734399]
[1722318210450,0.00846,66661.0,66660.0,1.48747294]
[1722318210968,0.00846,66661.0,66660.0,1.6121194]
[1722318211204,0.03199229,66661.0,66660.0,1.6121194]
[1722318211869,0.00846,66661.0,66660.0,1.6121194]
[1722318212109,0.00846,66661.0,66660.0,1.6221194]
[1722318212799,0.00846,66661.0,66660.0,1.62211726]
[1722318213036,0.00846,66661.0,66660.0,1.62411726]
[1722318213258,0.00846,66661.0,66660.0,1.63411726]
[1722318213487,0.00846,66661.0,66660.0,1.64411726]
[1722318213725,0.00846,66661.0,66660.0,1.88414126]
[1722318213950,0.00846,66661.0,66660.0,1.62211726]
[1722318214394,0.00846,66661.0,66660.0,1.88214126]
[1722318215063,0.00846,66661.0,66660.0,1.62211726]
[1722318215293,0.03199148,66661.0,66660.0,1.62211726]
[1722318215513,0.00846,66661.0,66660.0,1.62211726]
[1722318218183,0.00846,66661.0,66660.0,1.67222726]
[1722318218387,0.00846,66661.0,66660.0,1.65222726]
[1722318218587,0.03199137,66661.0,66660.0,1.65222726]
[1722318219322,0.03199137,66661.0,66660.0,1.63822691]
[1722318219531,0.03199137,66661.0,66660.0,1.67222691]
[1722318219733,0.03199137,66661.0,66660.0,1.63822691]
[1722318220275,0.03199137,66661.0,66660.0,1.65222691]
[1722318223012,0.03199137,66661.0,66660.0,1.65822691]
[1722318223618,0.03199137,66661.0,66660.0,1.62822691]
[1722318223838,0.03199137,66661.0,66660.0,1.65222691]
[1722318224049,0.03199137,66661.0,66660.0,1.64222691]
[1722318225074,0.03199137,66661.0,66660.0,1.65222691]
[1722318225712,0.03199137,66661.0,66660.0,1.64222691]
[1722318225880,0.03199137,66661.0,66660.0,1.6422316]
[1722318226022,0.03199137,66661.0,66660.0,1.6522316]
[1722318226228,0.03199137,66661.0,66660.0,1.51758294]
[1722318226428,0.03199137,66661.0,66660.0,1.62823307]
[1722318226674,0.00846,66661.0,66660.0,1.29730003]
[1722318227034,0.00846,66661.0,66660.0,1.08527603]
[1722318227283,0.00846,66661.0,66660.0,1.28119003]
[1722318227535,0.00846,66661.0,66660.0,1.05516603]
[1722318228190,0.00846,66661.0,66660.0,1.07816603]
[1722318228416,0.00846,66661.0,66660.0,1.07817064]
[1722318229117,0.00846,66661.0,66660.0,1.0781702]